bitfinex/quotes_SOLUSD_20251124
["timestamp","ask_amount","ask_price","bid_price","bid_amount"]
[1763978596874,0.13920553,129.38,129.36,42.39814964]
[1763978597031,0.26114569,129.4,129.39,18.12096]
[1763978597235,0.26114569,129.4,129.39,39.33024614]
[1763978597584,0.25146503,129.41,129.4,0.14216157]
[1763978597753,0.25146503,129.41,129.4,20.69170287]
[1763978598256,0.25146503,129.41,129.4,16.36716542]
[1763978598440,0.25146503,129.41,129.4,20.69170287]
[1763978599432,0.25146503,129.41,129.4,28.41967814]
[1763978599636,0.25146503,129.41,129.4,32.74421559]
[1763978599857,0.25146503,129.41,129.4,56.03421559]
[1763978600063,0.1,129.43,129.41,9.93098926]
[1763978600403,0.1,129.43,129.42,17.80525106]
[1763978600541,0.1,129.43,129.42,18.50525106]
[1763978601562,0.1,129.43,129.42,26.23203208]
[1763978602162,0.1,129.44,129.43,9.93098926]
[1763978602376,0.1,129.44,129.43,20.69170287]
[1763978603069,0.1,129.44,129.43,14.95552671]
[1763978603772,0.1,129.44,129.43,22.68171074]
[1763978605371,0.15832587,129.46,129.45,11.93098925]
[1763978605681,0.24845242,129.47,129.45,11.93098925]
[1763978605682,0.24845242,129.47,129.45,88.4050545]
[1763978605861,0.24845242,129.47,129.46,37.40102416]
[1763978606789,0.24845242,129.47,129.46,29.31094227]
[1763978606997,0.24845242,129.47,129.46,33.07648671]
[1763978607297,0.24845242,129.47,129.46,32.37648671]
[1763978607962,0.24845242,129.47,129.46,3.09537628]
[1763978608169,0.95845242,129.47,129.46,7.41991373]
[1763978608569,0.24845242,129.47,129.46,17.35090299]
[1763978609193,0.24845242,129.47,129.46,7.41991373]
[1763978609376,0.95845242,129.47,129.46,3.09537628]
[1763978609693,0.95845242,129.47,129.46,3.42]
[1763978609898,0.24845242,129.47,129.46,7.74453745]
[1763978610104,0.95845242,129.47,129.46,7.74453745]
[1763978610388,0.95845242,129.47,129.46,69.84453745]
[1763978610573,0.95845242,129.47,129.46,65.52]
[1763978610772,0.24845242,129.47,129.46,69.84453745]
[1763978610992,0.95845242,129.47,129.46,65.52]
[1763978614975,0.95845242,129.47,129.46,71.22234783]
[1763978615780,0.95845242,129.47,129.46,73.97781661]
[1763978616296,0.24845242,129.47,129.46,68.27546878]
[1763978616778,0.24845242,129.47,129.46,13.89986241]
[1763978617095,0.24845242,129.47,129.46,27.6264675]
[1763978617992,0.24845242,129.47,129.46,19.90207387]
[1763978618173,0.24845242,129.47,129.46,27.6264675]
[1763978618574,0.24845242,129.47,129.46,26.9264675]
[1763978618879,0.24845242,129.47,129.46,19.20207387]
[1763978619774,0.95845242,129.47,129.43,70.52593639]
[1763978619981,0.95845242,129.47,129.46,2.75546878]
[1763978620391,0.95845242,129.47,129.46,3.42]
[1763978620591,0.95845242,129.47,129.46,6.17546878]
[1763978622278,0.95845242,129.47,129.46,3.42]
[1763978625293,3.56546878,129.47,129.44,3.42]
[1763978625496,3.46546878,129.46,129.39,8.42840814]
[1763978625795,3.46546878,129.46,129.42,2.75546878]
[1763978625980,0.7,129.45,129.42,2.75546878]
[1763978626300,0.7,129.46,129.44,2.75546878]
[1763978626499,0.26733211,129.47,129.45,2.75546878]
[1763978626675,0.96733211,129.47,129.46,3.42]
[1763978627674,3.72280089,129.47,129.44,3.42]
[1763978627875,0.7,129.46,129.44,3.42]
[1763978628491,0.7,129.46,129.44,6.17546878]
[1763978628680,0.7,129.46,129.44,3.42]
[1763978630222,0.7,129.46,129.44,6.17546878]
[1763978631511,0.7,129.46,129.44,3.42]
[1763978632481,0.7,129.46,129.44,65.52]
[1763978632886,0.26733211,129.47,129.45,2.75546878]
[1763978633085,0.96733211,129.47,129.46,2.75546878]
[1763978635199,0.26733211,129.47,129.46,2.75546878]
[1763978637104,0.26733211,129.47,129.45,0.72]
[1763978637301,0.26733211,129.47,129.46,2.75546878]
[1763978638511,0.26733211,129.47,129.45,3.47546878]
[1763978638708,0.7,129.46,129.44,3.42]
[1763978638890,0.7,129.46,129.43,64.85546878]
[1763978639098,0.7,129.46,129.45,3.42]
[1763978640522,0.26733211,129.47,129.45,4.14]
[1763978640813,0.26733211,129.47,129.45,6.89546878]
[1763978641016,0.96733211,129.47,129.45,3.42]
[1763978641319,0.96733211,129.47,129.46,3.42]
[1763978641635,0.26733211,129.47,129.46,3.42]
[1763978642410,0.26733211,129.47,129.46,24.4086901]
[1763978642610,0.25334874,129.48,129.47,9.93098926]
[1763978642831,0.25334874,129.48,129.47,13.9653019]
[1763978643338,0.95334874,129.48,129.46,86.39642878]
[1763978643512,0.25334874,129.48,129.47,2.75546878]
[1763978643712,0.25334874,129.48,129.46,68.99546878]
[1763978644233,0.7,129.47,129.46,65.52]
[1763978644436,0.7,129.47,129.46,3.42]
[1763978645454,0.14864602,129.47,129.46,3.42]
[1763978645641,0.84864602,129.47,129.46,3.42]
[1763978646443,0.14864602,129.47,129.46,3.42]
[1763978646742,8.5018009,129.47,129.44,3.42]
[1763978647142,0.7,129.46,129.44,3.42]
[1763978649355,0.7,129.46,129.44,11.07315488]
[1763978649534,0.7,129.46,129.44,3.42]
[1763978651059,0.7,129.46,129.44,11.07315488]
[1763978651256,0.84864602,129.47,129.44,11.07315488]
[1763978653244,0.84864602,129.47,129.44,3.42]
[1763978654037,8.5018009,129.47,129.44,3.42]
[1763978654443,0.7,129.46,129.44,3.42]
[1763978654955,8.35315488,129.46,129.44,3.42]
[1763978655366,8.35315488,129.45,129.41,62.1]
[1763978655668,8.35315488,129.45,129.41,73.17315488]
[1763978655820,0.68,129.44,129.41,65.52]
[1763978656024,0.82864602,129.47,129.43,7.65315488]
[1763978656347,0.14864602,129.47,129.45,7.65315488]
[1763978656548,0.14864602,129.47,129.45,69.75315488]
[1763978657068,0.82864602,129.47,129.45,69.75315488]
[1763978658958,0.82864602,129.47,129.45,62.1]
[1763978659153,0.82864602,129.47,129.45,69.75315488]
[1763978661364,0.82864602,129.47,129.45,62.1]
[1763978661947,8.4818009,129.47,129.45,62.1]
[1763978662142,7.65315488,129.46,129.44,3.42]
[1763978662453,8.33315488,129.46,129.44,3.42]
[1763978662654,0.68,129.45,129.44,3.42]
[1763978663248,8.33315488,129.45,129.41,62.1]
[1763978663454,7.65315488,129.44,129.42,3.42]
[1763978663651,8.33315488,129.44,129.42,3.42]
[1763978663855,0.68,129.43,129.42,3.42]
[1763978665575,0.84053369,129.43,129.42,3.42]
[1763978666148,0.16053369,129.43,129.42,11.07315488]
[1763978666460,0.16053369,129.43,129.42,11.76315488]
[1763978666658,0.16053369,129.43,129.42,6.86591383]
[1763978668656,0.16053369,129.43,129.42,11.76542367]
[1763978669249,0.16053369,129.43,129.42,167.52]
[1763978669675,0.16053369,129.43,129.42,175.17542367]
[1763978670767,0.84053369,129.43,129.42,167.52]
[1763978671162,0.16053369,129.43,129.42,73.86542367]
[1763978671390,0.16053369,129.43,129.42,84.35600277]
[1763978671680,0.16053369,129.43,129.42,92.08278379]
[1763978672958,0.16053369,129.43,129.42,84.35600277]
[1763978673182,0.16053369,129.43,129.42,92.08278379]
[1763978674096,0.16053369,129.43,129.42,84.35600277]
[1763978674293,0.16053369,129.43,129.42,92.08278379]
[1763978674664,0.16053369,129.43,129.42,96.42005775]
[1763978675868,0.16053369,129.43,129.42,88.69327673]
[1763978676276,0.16053369,129.43,129.42,96.42005775]
[1763978678892,0.15882028,129.44,129.42,96.42005775]
[1763978679080,0.15882028,129.44,129.43,12.68269763]
[1763978679687,0.15882028,129.44,129.43,18.81096]
[1763978679889,0.15882028,129.44,129.43,30.80365763]
[1763978681087,0.14783552,129.46,129.45,61.78377674]
[1763978681292,0.14783552,129.46,129.45,179.19647437]
[1763978681588,0.14783552,129.46,129.45,179.88647437]
[1763978682178,0.14783552,129.46,129.45,167.89377674]
[1763978682381,0.14783552,129.46,129.45,179.19647437]
[1763978684573,0.14783552,129.46,129.45,167.20377674]
[1763978684779,0.82783552,129.46,129.45,179.19647437]
[1763978684977,0.14783552,129.46,129.45,167.20377674]
[1763978685293,0.68,129.47,129.45,167.20377674]
[1763978685472,0.16637607,129.46,129.45,179.19647437]
[1763978685904,0.16637607,129.46,129.45,179.86647437]
[1763978688692,0.16637607,129.46,129.45,172.17759308]
[1763978693710,0.16637607,129.46,129.45,179.90258342]
[1763978694091,0.16637607,129.46,129.45,172.17759308]
[1763978694987,0.16637607,129.46,129.45,189.83357268]
[1763978695406,0.15863119,129.47,129.46,71.54838993]
[1763978695710,0.15863119,129.47,129.46,77.08119928]
[1763978698709,0.15863119,129.47,129.46,84.80559291]
[1763978699111,0.15863119,129.47,129.46,77.08119928]
[1763978700530,0.15863119,129.47,129.46,62.17639368]
[1763978700685,0.15863119,129.47,129.46,69.34121701]
[1763978701695,0.82863119,129.47,129.46,69.34121701]
[1763978701907,0.15863119,129.47,129.46,69.34121701]
[1763978704309,0.15863119,129.47,129.46,70.57021002]
[1763978704511,0.15863119,129.47,129.46,235.94036925]
[1763978704735,0.15863119,129.47,129.46,235.38137624]
[1763978705228,0.1,129.48,129.46,254.69236032]
[1763978705449,0.25705872,129.48,129.47,9.27763268]
[1763978705615,0.25705872,129.48,129.47,9.83647654]
[1763978706314,0.15607419,129.49,129.48,61.36034195]
[1763978706626,0.15607419,129.49,129.48,176.05797463]
[1763978706921,0.15607419,129.49,129.48,183.78117512]
[1763978707125,0.15607419,129.49,129.48,176.05797463]
[1763978707619,0.15607419,129.49,129.48,183.78117512]
[1763978709222,0.14066043,129.5,129.49,33.22098926]
[1763978709425,0.14066043,129.5,129.49,38.75335123]
[1763978711344,0.14417958,129.54,129.53,70.68079918]
[1763978711512,0.14417958,129.54,129.53,78.54677709]
[1763978711712,0.14417958,129.54,129.53,74.91296075]
[1763978711950,0.14417958,129.54,129.53,79.21677709]
[1763978713424,0.14417958,129.54,129.53,86.93699634]
[1763978714930,0.14417958,129.54,129.53,79.21677709]
[1763978715641,0.14417958,129.54,129.53,86.93699634]
[1763978715844,0.14417958,129.54,129.53,79.21677709]
[1763978716529,0.14417958,129.54,129.53,86.93699634]
[1763978716819,0.83560992,129.56,129.54,60.74779191]
[1763978717026,0.83560992,129.56,129.54,65.05160825]
[1763978718039,0.16560992,129.56,129.54,65.05160825]
[1763978718225,0.83496921,129.55,129.54,60.74779191]
[1763978719642,0.15496921,129.55,129.54,40.47941753]
[1763978719843,0.15496921,129.55,129.54,41.66061254]
[1763978720039,0.15496921,129.55,129.54,50.82604567]
[1763978720343,0.15496921,129.55,129.54,74.44173857]
[1763978720642,0.16560992,129.56,129.55,9.93098926]
[1763978720819,0.1,129.59,129.55,59.7857656]
[1763978721018,0.1,129.59,129.58,14.2348056]
[1763978721237,0.1,129.6,129.58,84.05862194]
[1763978721430,0.68,129.66,129.64,4.30381634]
[1763978721745,0.68,129.66,129.65,3.42]
[1763978721950,0.68,129.66,129.65,7.72381634]
[1763978722444,0.1,129.68,129.65,7.72381634]
[1763978722763,0.1,129.68,129.65,3.42]
[1763978722935,4.40381634,129.68,129.62,9.93098926]
[1763978723127,0.68,129.67,129.64,4.30381634]
[1763978723527,0.68,129.67,129.65,4.30381634]
[1763978723724,0.68,129.67,129.66,3.42]
[1763978723930,0.68,129.67,129.64,3.42]
[1763978724436,0.68,129.67,129.64,7.72381634]
[1763978724948,0.68,129.67,129.65,4.30381634]
[1763978725658,0.14816164,129.66,129.64,3.42]
[1763978726225,0.82816164,129.66,129.64,3.42]
[1763978726833,0.82816164,129.66,129.65,4.30381634]
[1763978727749,0.82816164,129.66,129.65,7.72381634]
[1763978728733,0.14816164,129.66,129.65,7.72381634]
[1763978728937,0.82816164,129.66,129.65,7.72381634]
[1763978729649,0.14816164,129.66,129.65,7.72381634]
[1763978730433,0.82816164,129.66,129.65,3.42]
[1763978730659,0.82816164,129.66,129.65,7.72381634]
[1763978730983,0.82816164,129.66,129.65,3.42]
[1763978731272,0.82816164,129.66,129.63,62.1]
[1763978731273,5.13197798,129.66,129.63,3.42]
[1763978731640,0.68,129.65,129.63,3.42]
[1763978731841,4.98381634,129.65,129.63,3.42]
[1763978732043,4.30381634,129.64,129.58,9.78882769]
[1763978732246,4.98381634,129.64,129.6,4.30381634]
[1763978732553,0.68,129.63,129.6,4.30381634]
[1763978733063,0.68,129.63,129.59,7.72381634]
[1763978733264,4.98381634,129.63,129.59,7.72381634]
[1763978733646,0.68,129.62,129.59,7.72381634]
[1763978734578,0.68,129.62,129.59,6.16945236]
[1763978734780,0.68,129.62,129.6,2.74945236]
[1763978737340,0.68,129.62,129.59,6.16945236]
[1763978737545,0.68,129.62,129.59,65.52]
[1763978737846,0.68,129.62,129.6,2.74945236]
[1763978738969,0.68,129.62,129.59,65.52]
[1763978739154,0.68,129.62,129.6,2.74945236]
[1763978743161,0.68,129.62,129.59,68.26945236]
[1763978743557,0.68,129.62,129.59,65.52]
[1763978743759,0.68,129.62,129.59,68.26945236]
[1763978743972,0.68,129.62,129.59,65.52]
[1763978744172,2.74945236,129.6,129.53,62.1]
[1763978744476,2.74945236,129.57,129.54,3.42]
[1763978744690,10.99780944,129.6,129.54,3.42]
[1763978744691,2.74945236,129.56,129.54,3.42]
[1763978744972,2.74945236,129.56,129.52,2.74945236]
[1763978744973,2.74945236,129.55,129.52,3.42]
[1763978745162,3.42945236,129.58,129.53,2.74945236]
[1763978745479,0.16679027,129.54,129.53,2.74945236]
[1763978745644,0.16679027,129.54,129.52,4.14]
[1763978745645,0.16679027,129.54,129.52,3.42]
[1763978745846,0.72,129.53,129.52,3.42]
[1763978746044,0.88679027,129.54,129.52,6.16945236]
[1763978747668,2.74945236,129.53,129.48,62.1]
[1763978747869,2.74945236,129.52,129.49,3.42]
[1763978748053,0.72,129.53,129.49,3.42]
[1763978748259,3.46945236,129.53,129.49,3.42]
[1763978748458,0.72,129.53,129.49,6.16945236]
[1763978748658,0.72,129.52,129.5,2.74945236]
[1763978750380,0.72,129.52,129.49,6.16945236]
[1763978751156,0.72,129.52,129.5,2.74945236]
[1763978753388,0.72,129.52,129.49,3.42]
[1763978753594,0.72,129.52,129.5,2.74945236]
[1763978754395,0.16679027,129.54,129.51,2.74945236]
[1763978754593,0.72,129.53,129.51,2.74945236]
[1763978755361,0.16679027,129.54,129.52,2.74945236]
[1763978755566,0.88679027,129.54,129.52,2.74945236]
[1763978755971,3.63624263,129.54,129.5,2.74945236]
[1763978756295,3.63624263,129.54,129.49,6.16945236]
[1763978756476,0.72,129.53,129.49,6.16945236]
[1763978756670,3.46945236,129.53,129.49,6.16945236]
[1763978756873,0.72,129.53,129.49,6.16945236]
[1763978757205,2.91624263,129.54,129.49,6.16945236]
[1763978757206,0.72,129.52,129.49,6.16945236]
[1763978758174,0.72,129.52,129.5,2.74945236]
[1763978759880,0.72,129.52,129.51,2.74945236]
[1763978760616,0.72,129.52,129.5,2.74945236]
[1763978760774,0.72,129.52,129.49,6.16945236]
[1763978760977,0.72,129.53,129.5,3.45945236]
[1763978761271,0.16679027,129.54,129.51,2.74945236]
[1763978761475,0.88679027,129.54,129.52,2.74945236]
[1763978761890,0.88679027,129.54,129.51,2.74945236]
[1763978762218,0.88679027,129.54,129.52,6.16945236]
[1763978763122,0.16679027,129.54,129.53,3.45945236]
[1763978764019,0.16679027,129.54,129.53,2.74945236]
[1763978764205,0.16679027,129.54,129.53,3.45945236]
[1763978764916,0.16679027,129.54,129.53,2.74945236]
[1763978765301,0.72,129.56,129.53,2.74945236]
[1763978765508,0.14110433,129.55,129.54,2.74945236]
[1763978767112,0.86110433,129.55,129.54,2.74945236]
[1763978767534,0.86110433,129.55,129.53,2.74945236]
[1763978768411,0.86110433,129.55,129.52,68.26945236]
[1763978769008,0.00956227,129.56,129.52,68.26945236]
[1763978769208,20.87997463,129.56,129.52,68.26945236]
[1763978769418,18.13052227,129.56,129.52,68.97945236]
[1763978769618,0.00956227,129.56,129.53,2.74945236]
[1763978770012,0.00956227,129.56,129.52,66.23]
[1763978770223,0.00956227,129.56,129.53,2.74945236]
[1763978770427,0.00956227,129.56,129.54,2.74945236]
[1763978770727,0.00956227,129.56,129.53,3.45945236]
[1763978771029,0.00956227,129.56,129.53,2.74945236]
[1763978771328,0.72956227,129.56,129.53,2.74945236]
[1763978773030,18.85052227,129.56,129.53,2.74945236]
[1763978773333,0.72956227,129.56,129.53,64.84945236]
[1763978773536,0.00956227,129.56,129.54,2.74945236]
[1763978773722,0.00956227,129.56,129.55,6.16945236]
[1763978773927,0.00956227,129.56,129.55,3.42]
[1763978774629,0.00956227,129.56,129.55,6.87945236]
[1763978776125,0.00956227,129.56,129.55,68.97945236]
[1763978780715,0.00956227,129.56,129.55,64.84945236]
[1763978781029,0.00956227,129.56,129.55,65.52]
[1763978781751,0.00956227,129.56,129.55,68.98945236]
[1763978784451,0.00956227,129.56,129.55,78.92044162]
[1763978785342,0.18,129.6,129.56,0.72]
[1763978785546,0.16836634,129.58,129.57,6.16945236]
[1763978785754,0.16836634,129.58,129.57,3.42]
[1763978785958,0.16836634,129.58,129.57,6.88945236]
[1763978786952,0.16836634,129.58,129.57,6.16945236]
[1763978787852,0.16836634,129.58,129.57,3.42]
[1763978791147,0.16836634,129.58,129.57,65.52]
[1763978792556,0.16836634,129.58,129.57,68.26945236]
[1763978793069,0.16836634,129.58,129.57,68.98945236]
[1763978794652,0.16836634,129.58,129.57,70.53666336]
[1763978795482,18.12096,129.57,129.51,0.72]
[1763978795770,4.29666336,129.56,129.53,3.42]
[1763978795973,4.70666336,129.56,129.53,3.42]
[1763978797275,0.41,129.56,129.53,7.71666336]
[1763978797473,4.70666336,129.56,129.53,3.42]
[1763978797861,4.70666336,129.56,129.53,4.14]
[1763978798363,4.70666336,129.56,129.53,3.42]
[1763978799444,0.41,129.55,129.53,3.42]
[1763978800867,18.12096,129.57,129.53,3.42]
[1763978801071,4.70666336,129.56,129.53,3.42]
[1763978801374,18.53096,129.57,129.53,8.43666336]
[1763978801575,0.41,129.56,129.53,3.42]
[1763978801781,4.70666336,129.56,129.53,3.42]
[1763978802376,0.41,129.56,129.53,3.42]
[1763978805577,0.14896191,129.54,129.53,3.42]
[1763978805754,0.14896191,129.54,129.53,65.52]
[1763978807989,0.14896191,129.54,129.53,66.19]
[1763978808198,0.14896191,129.54,129.53,70.48666336]
[1763978809267,0.14896191,129.54,129.53,66.19]
[1763978809466,0.14896191,129.54,129.53,70.48666336]
[1763978812600,4.44562527,129.54,129.51,0.67]
[1763978812775,0.14896191,129.54,129.52,4.29666336]
[1763978813288,0.14896191,129.54,129.53,4.96666336]
[1763978814286,0.14896191,129.54,129.53,0.67]
[1763978814689,0.14896191,129.54,129.53,4.96666336]
[1763978815184,0.14896191,129.54,129.51,3.42]
[1763978815387,0.14896191,129.54,129.52,4.96666336]
[1763978815984,0.14896191,129.54,129.53,0.67]
[1763978816382,0.14896191,129.54,129.53,76.99765262]
[1763978817504,0.14896191,129.54,129.53,84.71787187]
[1763978819013,0.14896191,129.54,129.53,89.01453523]
[1763978819697,0.14896191,129.54,129.53,209.13549523]
[1763978820910,0.1600779,129.55,129.53,228.43604336]
[1763978821100,0.1600779,129.55,129.54,18.87550603]
[1763978822807,0.1600779,129.55,129.54,14.57884267]
[1763978822997,0.1600779,129.55,129.54,18.87550603]
[1763978823190,0.1600779,129.55,129.54,14.57884267]
[1763978823515,0.1600779,129.55,129.54,8.38666336]
[1763978823715,0.1600779,129.55,129.54,70.48666336]
[1763978825295,0.41,129.59,129.54,71.04446381]
[1763978825496,0.15500349,129.57,129.56,4.29666336]
[1763978825724,0.15500349,129.57,129.56,7.71666336]
[1763978825896,0.15500349,129.57,129.56,3.42]
[1763978826099,0.15500349,129.57,129.56,7.71666336]
[1763978827110,0.15500349,129.57,129.56,3.42]
[1763978827409,0.15500349,129.57,129.54,66.39666336]
[1763978827599,0.56500349,129.57,129.55,3.42]
[1763978827986,0.41,129.56,129.55,62.1]
[1763978828187,0.41,129.56,129.55,3.42]
[1763978830797,4.70666336,129.56,129.55,3.42]
[1763978831333,18.12096,129.54,129.48,62.1]
[1763978831491,22.41762336,129.54,129.49,4.29666336]
[1763978831692,0.41,129.53,129.5,3.42]
[1763978832128,0.41,129.55,129.51,4.96666336]
[1763978832330,18.53096,129.55,129.51,4.96666336]
[1763978833033,18.12096,129.55,129.51,4.96666336]
[1763978833240,0.41,129.54,129.51,4.96666336]
[1763978833421,0.41,129.54,129.5,3.42]
[1763978833629,4.70666336,129.54,129.5,3.42]
[1763978834132,0.41,129.53,129.5,7.71666336]
[1763978834309,4.29666336,129.54,129.5,7.71666336]
[1763978834310,22.41762336,129.55,129.5,7.71666336]
[1763978834636,0.41,129.54,129.5,8.38666336]
[1763978834928,4.70666336,129.54,129.5,7.71666336]
[1763978835096,4.70666336,129.54,129.5,3.42]
[1763978835296,4.70666336,129.53,129.5,3.42]
[1763978835496,4.70666336,129.53,129.5,65.52]
[1763978835938,0.41,129.52,129.47,0.2]
[1763978836229,0.41,129.52,129.49,3.42]
[1763978836398,0.41,129.52,129.49,7.71666336]
[1763978836824,0.41,129.52,129.49,3.42]
[1763978837054,0.41,129.52,129.49,7.71666336]
[1763978837439,4.70666336,129.52,129.49,3.42]
[1763978837636,0.41,129.52,129.49,3.42]
[1763978837830,0.41,129.52,129.49,7.71666336]
[1763978838266,0.41,129.54,129.5,0.7]
[1763978838472,23.38250178,129.55,129.51,4.29666336]
[1763978838636,19.49583842,129.55,129.51,4.99666336]
[1763978838959,1.37487842,129.55,129.51,4.99666336]
[1763978839644,19.49583842,129.55,129.51,4.99666336]
[1763978839840,19.08583842,129.55,129.51,4.99666336]
[1763978840040,4.29666336,129.53,129.5,3.42]
[1763978840543,0.41,129.52,129.5,3.42]
[1763978840941,0.41,129.52,129.48,4.99666336]
[1763978841145,0.41,129.52,129.49,3.42]
[1763978841540,0.41,129.52,129.49,65.52]
[1763978841741,4.70666336,129.52,129.49,65.52]
[1763978842147,22.82762336,129.51,129.47,0.2]
[1763978842441,22.82762336,129.51,129.48,3.42]
[1763978842640,0.41,129.5,129.48,3.42]
[1763978843744,4.70666336,129.5,129.48,3.42]
[1763978843960,4.70666336,129.49,129.48,3.42]
[1763978844166,22.82762336,129.49,129.48,3.42]
[1763978844371,4.70666336,129.49,129.48,3.42]
[1763978845583,22.97648307,129.49,129.47,0.2]
[1763978845759,0.41,129.48,129.47,0.2]
[1763978847367,27.12428672,129.48,129.47,0.2]
[1763978847552,40.47527598,129.48,129.47,0.2]
[1763978849085,31.88194926,129.48,129.47,0.2]
[1763978849290,22.82762336,129.48,129.47,0.2]
[1763978851073,18.12096,129.48,129.47,0.2]
[1763978851281,22.41762336,129.48,129.47,0.2]
[1763978851788,23.79302342,129.48,129.47,0.2]
[1763978852483,19.49636006,129.48,129.47,0.2]
[1763978852787,18.12096,129.48,129.47,0.2]
[1763978853963,22.41762336,129.48,129.47,0.2]
[1763978856550,20.87692392,129.48,129.47,0.2]
[1763978858990,18.12096,129.48,129.47,0.2]
[1763978859489,20.87692392,129.48,129.47,0.2]
[1763978859855,18.12096,129.48,129.47,0.2]
[1763978860059,20.87692392,129.48,129.47,0.2]
[1763978860261,0.14885971,129.49,129.47,63.0]
[1763978860470,0.14885971,129.49,129.48,0.7]
[1763978860665,0.14885971,129.49,129.48,3.45596392]
[1763978862086,0.14885971,129.49,129.48,0.7]
[1763978862261,0.14885971,129.49,129.47,65.72]
[1763978862769,21.84232398,129.48,129.47,0.2]
[1763978863158,33.41834123,129.48,129.47,0.2]
[1763978863583,22.39448555,129.48,129.47,0.2]
[1763978863888,22.25232398,129.48,129.47,0.2]
[1763978864879,33.27617966,129.48,129.47,0.2]
[1763978865191,33.41834123,129.48,129.47,0.2]
[1763978865586,33.57573179,129.48,129.47,0.2]
[1763978865982,18.12096,129.44,129.42,0.2]
[1763978866294,2.75596392,129.43,129.42,0.2]
[1763978866492,3.16596392,129.43,129.42,0.2]
[1763978867588,2.75596392,129.43,129.42,0.2]
[1763978867772,21.28692392,129.43,129.42,0.2]
[1763978869109,20.87692392,129.43,129.42,0.2]
[1763978871200,21.28692392,129.43,129.42,0.2]
[1763978871384,20.87692392,129.43,129.42,0.2]
[1763978873374,21.28692392,129.43,129.42,0.2]
[1763978874197,20.87692392,129.43,129.42,0.2]
[1763978874588,21.84269692,129.43,129.42,0.2]
[1763978874791,22.25269692,129.43,129.42,0.2]
[1763978875908,22.39485849,129.43,129.42,0.2]
[1763978876102,33.41871417,129.43,129.42,0.2]
[1763978876578,43.20754186,129.43,129.42,0.2]
[1763978876977,46.30675543,129.43,129.42,0.2]
[1763978877206,49.72675543,129.43,129.42,0.2]
[1763978878314,21.98485849,129.43,129.42,0.2]
[1763978878487,24.43908549,129.43,129.42,0.2]
[1763978879200,24.84908549,129.43,129.42,0.2]
[1763978879382,25.81485849,129.43,129.42,0.2]
[1763978879573,36.83871417,129.43,129.42,0.2]
[1763978881896,11.93098925,129.42,129.41,0.2]
[1763978882105,14.33198117,129.42,129.41,0.2]
[1763978882411,2.89812549,129.42,129.41,0.2]
[1763978882623,6.06408941,129.42,129.41,0.2]
[1763978882785,24.18504941,129.42,129.41,0.2]
[1763978883114,6.06408941,129.42,129.41,0.2]
[1763978883897,0.14216157,129.42,129.41,0.2]
[1763978884106,2.89812549,129.42,129.41,0.2]
[1763978884321,21.01908549,129.42,129.41,0.2]
[1763978884622,3.72173692,129.43,129.41,0.88]
[1763978884791,3.72181154,129.42,129.41,0.88]
[1763978885723,3.88270139,129.42,129.41,0.88]
[1763978886818,1.12673747,129.42,129.41,0.88]
[1763978886984,0.16088985,129.42,129.41,0.88]
[1763978887186,0.15231711,129.43,129.41,3.63596392]
[1763978887506,0.15231711,129.43,129.42,0.68]
[1763978894616,0.15231711,129.43,129.42,3.43596392]
[1763978895001,0.16492244,129.44,129.42,3.43596392]
[1763978895204,0.14064451,129.45,129.43,6.85596392]
[1763978895393,0.14064451,129.45,129.44,0.68]
[1763978895593,2.89660843,129.45,129.42,0.68]
[1763978895793,3.72166231,129.44,129.42,0.68]
[1763978895995,18.26160451,129.45,129.42,3.43596392]
[1763978896424,0.14064451,129.45,129.43,0.69]
[1763978897505,0.14064451,129.45,129.41,3.62]
[1763978897506,2.89660843,129.45,129.41,6.37596392]
[1763978897709,2.89660843,129.45,129.42,0.69]
[1763978899534,0.96569839,129.44,129.42,0.69]
[1763978899917,0.14064451,129.45,129.42,0.69]
[1763978900904,0.14064451,129.45,129.42,62.79]
[1763978901214,2.89660843,129.45,129.42,62.79]
[1763978901406,2.89660843,129.45,129.42,62.1]
[1763978901407,3.72166231,129.44,129.42,62.1]